lending/lending_fUSD_20240622
["ID","MTS","AMOUNT","RATE_DAILY","PERIOD"]
[330181117,1719084632779,-500.0,0.000214,7]
[330181118,1719084632788,-832.0,0.000214,3]
[330181119,1719084632797,-534.89,0.0002145,2]
[330181120,1719084632807,-1078.83600072,0.00021478,2]
[330181121,1719084632815,-449.99559938,0.00021478,2]
[330181122,1719084632824,-1056.18330265,0.00021479,2]
[330181123,1719084632834,-1066.34841007,0.00021479,2]
[330181124,1719084632843,-1089.88041119,0.00021479,5]
[330181125,1719084632853,-5592.90095688,0.00021498,2]
[330181126,1719084632862,-800.0,0.000215,7]
[330181127,1719084632871,-1000.0,0.000216,7]
[330181128,1719084632880,-154.92,0.00021644,2]
[330181129,1719084632890,-1300.0,0.000217,7]
[330181130,1719084632899,-339.24007506,0.00021734,2]
[330181131,1719084632909,-500.0,0.00021741,2]
[330181132,1719084632919,-200.0,0.00021742,2]
[330181133,1719084632928,-500.0,0.00021742,2]
[330181134,1719084632939,-200.0,0.00021742,2]
[330181135,1719084632949,-200.0,0.000218,7]
[330181136,1719084632959,-1702.658338,0.000218,2]
[330181137,1719084632969,-310.83463002,0.00021807,2]
[330181138,1719084632980,-220.02,0.00021808,2]
[330181139,1719084632990,-2715.0147,0.00021817,2]
[330181140,1719084633000,-291.556,0.00021817,2]
[330181141,1719084633010,-180.02092772,0.00021817,2]
[330181142,1719084633019,-4906.15860555,0.00021817,2]
[330181143,1719084633028,-247.88937106,0.00021817,2]
[330181144,1719084633037,-775.63043522,0.00021817,2]
[330181145,1719084633047,-237458.43159915,0.00021817,2]
[330181146,1719084633057,-173.58441746,0.00021817,2]
[330181147,1719084633066,-406.64009014,0.00021817,2]
[330181148,1719084633075,-429.50745894,0.00021817,2]
[330181149,1719084633084,-343.1159696,0.00021817,2]
[330181150,1719084633093,-200.0,0.000219,7]
[330181151,1719084633101,-2003.58276438,0.00021904,2]
[330181152,1719084633110,-2030.5934958,0.00021905,2]
[330181153,1719084633119,-10967.6207789,0.00021905,2]
[330181154,1719084633128,-1221.5416752,0.00021905,2]
[330181155,1719084633137,-88103.0720079,0.00021907,2]
[330181156,1719084633146,-23537.24279229,0.00021907,2]
[330181157,1719084633157,-5669.67267634,0.00021907,2]
[330181162,1719084639352,-1133.60989333,0.00014968,2]
[330181163,1719084639363,-378.49941491,0.00015478,2]
[330181164,1719084639374,-526.14512571,0.00015897,2]
[330181165,1719084639385,-296.25996071,0.00021741,2]
[330181166,1719084639396,-8302.82414963,0.00021907,2]
[330181167,1719084639410,-404.64145571,0.00021907,2]
[330181168,1719084639423,-616.38,0.00021907,2]
[330181169,1719084639436,-23957.7,0.00021907,2]
[330181170,1719084639449,-46504.47736385,0.00021907,2]
[330181171,1719084639461,-9084.2900005,0.00021907,2]
[330181172,1719084639474,-6575.63491574,0.00021907,2]
[330181173,1719084639486,-30286.63931483,0.00021907,2]
[330181174,1719084639499,-37562.98002971,0.00021907,2]
[330181175,1719084639686,-1443.26152,0.00021907,2]
[330181178,1719084639701,-17501.6286004,0.00021907,2]
[330181180,1719084639712,-365.18124254,0.00021914,2]
[330181182,1719084639723,-543.83180554,0.00021914,2]
[330181183,1719084639734,-4906.15860546,0.00021915,2]
[330181184,1719084639744,-378150.93543358,0.00021915,2]
[330181201,1719084640619,-1292.86092945,0.00021915,2]
[330181202,1719084640632,-1621.18105363,0.00021915,2]
[330181203,1719084640903,-307.3,0.00021915,2]
[330181206,1719084640916,-2201.2276,0.00021915,2]
[330181208,1719084640928,-732.02865444,0.00021915,2]
[330181209,1719084640943,-665.10609225,0.00021915,2]
[330181214,1719084644882,-910.24025099,0.00021915,2]
[330181215,1719084645635,-966.10476442,0.00021915,2]
[330181216,1719084645647,-258.28491329,0.00021915,2]
[330181217,1719084645660,-696.5591496,0.00021915,2]
[330181224,1719084646588,-339.24007506,0.00021716,2]
[330181225,1719084646598,-14401.90655138,0.00021915,2]
[330181226,1719084646610,-33855.39650449,0.00021915,2]
[330181227,1719084646625,-41422.74065039,0.00021915,2]
[330181228,1719084646637,-145752.0241867,0.00021915,2]
[330181229,1719084646649,-3509.59863135,0.00021915,2]
[330181230,1719084646661,-495.0703625,0.00021915,2]
[330181231,1719084646673,-2864.12623093,0.00021915,2]
[330181232,1719084646838,-2472.6,0.00021915,2]
[330181233,1719084646869,-260.87468962,0.00021915,2]
[330181234,1719084646881,-6477.333078,0.00021915,2]
[330181235,1719084646893,-1705.18662091,0.00021915,2]
[330181236,1719084646905,-142474.59165325,0.00021915,2]
[330181237,1719084648033,5378.66326284,0.00013082,2]
[330181239,1719084800398,1000.0,0.00025954,120]
[330181269,1719085832279,-449.17679133,0.00013699,2]
[330181270,1719085832289,-205.0,0.00017699,2]
[330181271,1719085832299,-420.49,0.00018417,2]
[330181272,1719085832309,-1025.33320867,0.000197,5]
[330181273,1719085832322,-1500.0,0.000197,5]
[330181274,1719085832399,-9215.66679133,0.000197,5]
[330181275,1719085832408,-250.0,0.00020348,2]
[330181276,1719085832418,-1000.0,0.00020375,2]
[330181277,1719085832429,-333.67,0.00020392,2]
[330181278,1719085832438,-250.0,0.00020406,2]
[330181279,1719085832449,-150.0,0.00020466,2]
[330181280,1719085832458,-1000.0,0.000205,3]
[330181281,1719085832469,-1000.0,0.000206,3]
[330181282,1719085832479,-1000.0,0.000206,3]
[330181283,1719085832490,-1000.0,0.000206,3]
[330181284,1719085832501,-420.49,0.00020681,2]
[330181285,1719085832511,-1250.0,0.00021,2]
[330181286,1719085832521,-10480.0,0.00021,5]
[330181287,1719085832530,-1011.0,0.00021,3]
[330181288,1719085832540,-449.97944763,0.00021,3]
[330181289,1719085832552,-550.02055237,0.00021,3]
[330181290,1719085832560,-537.12762732,0.00021,3]
[330181310,1719085838088,-410.0,0.00021,3]
[330181311,1719085838103,-52.87237268,0.00021,3]
[330181312,1719085838113,-673.25462007,0.00021299,2]
[330181313,1719085838123,-999.0,0.000214,3]
[330181314,1719085838133,-293.83988913,0.00021615,2]
[330181315,1719085838143,-156.59,0.00021644,2]
[330181316,1719085838153,-150.77,0.00021644,2]
[330181317,1719085838164,-549.13198539,0.000217,2]
[330181318,1719085838174,-238.14934907,0.00021706,2]
[330181319,1719085838183,-6831.9236,0.00021717,2]
[330181320,1719085838193,-211.47465837,0.00021734,2]
[330181321,1719085838203,-200.0,0.00021742,2]
[330181322,1719085838213,-500.0,0.00021742,2]
[330181323,1719085838222,-200.0,0.00021742,2]
[330181324,1719085838231,-173.57,0.00021808,3]
[330181325,1719085838241,-310.83463,0.00021814,2]
[330181326,1719085838251,-173.58441746,0.00021815,2]
[330181327,1719085838260,-180.02092772,0.00021816,2]
[330181328,1719085838270,-5235.44518381,0.00021816,2]
[330181329,1719085838280,-649.22042106,0.00021816,2]
[330181330,1719085838290,-10000.0,0.00021817,2]
[330181331,1719085838299,-286.33830596,0.00021817,2]
[330181332,1719085838310,-25243.21790763,0.00021896,2]
[330181333,1719085838319,-349.47617813,0.00021896,2]
[330181334,1719085838329,-155.0,0.00021898,2]
[330181335,1719085838339,-477.36876928,0.00021898,2]
[330181336,1719085838348,-14995.47812876,0.00021905,2]
[330181351,1719085838779,-5011.6,0.00021905,2]
[330181352,1719085838791,-1449.16849372,0.00021905,2]
[330181353,1719085838803,-2948.00079467,0.00021905,2]
[330181354,1719085838835,-303.81770528,0.00021905,2]
[330181355,1719085838848,-259.79166223,0.00021905,2]
[330181356,1719085838875,-226125.89843734,0.00021905,2]
[330181357,1719085838885,-931.8025454,0.00021909,2]
[330181358,1719085838895,-8203.3741881,0.00021909,2]
[330181359,1719085838905,-1518.8087376,0.00021909,2]
[330181360,1719085838917,-140021.36419051,0.00021909,2]
[330181361,1719085838926,-5235.44518376,0.00021914,2]
[330181362,1719085838936,-888.0,0.00021915,2]
[330181363,1719085838947,-26776.1329711,0.00021915,2]
[330181364,1719085838959,-38574.72708003,0.00021915,2]
[330181366,1719085840340,-548.43,0.00021915,2]
[330181367,1719085840403,-12636.26913702,0.00021915,2]
[330181381,1719085843167,-155.0,0.00021896,2]
[330181382,1719085843177,-682.93466786,0.00021915,2]
[330181383,1719085843229,-54026.50898018,0.00021915,2]
[330181432,1719086790714,150.5,0.00021908,30]
[330181433,1719086791427,150.5,0.00021898,30]
[330181434,1719086792080,150.5,0.00021888,30]
[330181435,1719086792565,160.5,0.0002217,30]
[330181436,1719086800820,156.062305,0.00026,60]
[330181441,1719087032619,-300.0,0.00013699,2]
[330181442,1719087032630,-165.60822621,0.00018621,2]
[330181443,1719087032639,-150.0,0.00019725,2]
[330181444,1719087032649,-499.99,0.00019726,2]
[330181445,1719087032658,-198.866985,0.00020283,2]
[330181446,1719087032667,-622.28755343,0.00020455,5]
[330181449,1719087032689,-877.71244657,0.00020455,5]
[330181451,1719087032699,-57.40405354,0.00020537,2]
[330181453,1719087032710,-141.46293146,0.00020537,2]
[330181455,1719087032719,-800.0,0.00020539,2]
[330181456,1719087032728,-470.43,0.00020556,2]
[330181458,1719087032738,-1000.0,0.00020585,2]
[330181459,1719087032747,-250.0,0.00020599,2]
[330181460,1719087032757,-250.0,0.0002061,2]
[330181461,1719087032766,-195.62,0.0002066,2]
[330181462,1719087032775,-200.0,0.00020696,2]
[330181463,1719087032784,-198.866985,0.00020791,2]
[330181464,1719087032794,-1250.0,0.00021,2]
[330181465,1719087032803,-198.866985,0.00021044,2]
[330181466,1719087032813,-1820.0,0.00021208,2]
[330181467,1719087032822,-359.0,0.00021208,2]
[330181468,1719087032832,-1271.0,0.00021208,2]
[330181469,1719087032841,-1654.0,0.00021208,2]
[330181470,1719087032851,-447.0,0.00021208,2]
[330181471,1719087032860,-166.0,0.00021208,2]
[330181472,1719087032869,-166.47947418,0.00021208,2]
[330181473,1719087032881,-450.52052582,0.00021208,2]
[330181474,1719087032891,-813.0,0.00021208,2]
[330181475,1719087032900,-2411.0,0.00021208,2]
[330181476,1719087032909,-150.0,0.00021208,2]
[330181477,1719087032919,-1303.0,0.00021208,2]
[330181478,1719087032929,-530.07119173,0.00021208,2]
[330181479,1719087032940,-16.92880827,0.00021208,2]
[330181480,1719087032950,-3199.0,0.00021208,2]
[330181481,1719087032959,-1983.0,0.00021208,2]
[330181482,1719087032969,-102.6012914,0.00021208,2]
[330181483,1719087032981,-187.3987086,0.00021208,2]
[330181484,1719087032990,-122.93576336,0.00021208,2]
[330181485,1719087033027,-5673.06423664,0.00021208,2]
[330181486,1719087033036,-5161.0,0.00021208,2]
[330181487,1719087033045,-1660.0,0.00021208,2]
[330181488,1719087033055,-198.866985,0.00021298,2]
[330181489,1719087033064,-5592.90095688,0.00021369,2]
[330181490,1719087033073,-383.3117566,0.00021468,2]
[330181491,1719087033083,-1124.74810851,0.00021477,2]
[330181492,1719087033092,-1061.59110092,0.00021477,2]
[330181493,1719087033101,-414.50144157,0.00021573,2]
[330181494,1719087033111,-1000.0,0.000216,2]
[330181495,1719087033120,-5378.66326284,0.00021615,2]
[330181496,1719087033129,-430.46189482,0.00021615,2]
[330181497,1719087033139,-284.11,0.00021644,2]
[330181498,1719087033343,-210.0,0.00021698,2]
[330181499,1719087033353,-1000.0,0.000217,2]
[330181500,1719087033362,-200.0,0.00021742,2]
[330181501,1719087033373,-500.0,0.00021742,2]
[330181502,1719087033382,-129.87061607,0.00021742,2]
[330181503,1719087033394,-70.12938393,0.00021742,2]
[330181504,1719087033403,-273.9801013,0.00021805,2]
[330181505,1719087033412,-382.14979223,0.00021805,2]
[330181506,1719087033428,-845.39999995,0.00021805,2]
[330181507,1719087033439,-7738.34620782,0.00021805,2]
[330181508,1719087033448,-1069.69,0.00021805,2]
[330181509,1719087033457,-150.08770528,0.00021806,2]
[330181510,1719087033466,-273.98010121,0.00021806,2]
[330181511,1719087033475,-313.90916602,0.00021807,2]
[330181512,1719087033484,-273.98010121,0.00021808,2]
[330181513,1719087033498,-273.98010121,0.00021809,2]
[330181514,1719087033507,-273.98010121,0.0002181,2]
[330181515,1719087033516,-273.98010121,0.00021812,2]
[330181516,1719087033525,-500.0,0.00021812,2]
[330181517,1719087033535,-273.98010121,0.00021813,2]
[330181518,1719087033544,-273.98010121,0.00021814,2]
[330181519,1719087033553,-228.05965401,0.00021815,2]
[330181520,1719087033562,-195.60295777,0.00021815,2]
[330181521,1719087033574,-228.05965401,0.00021816,2]
[330181522,1719087033584,-273.98010121,0.00021816,2]
[330181523,1719087033593,-7742.97233311,0.00021816,2]
[330181524,1719087033603,-228.05965401,0.00021816,2]
[330181525,1719087033612,-228.05965401,0.00021817,2]
[330181526,1719087033621,-1000.0,0.00021817,2]
[330181527,1719087033631,-10000.0,0.00021817,2]
[330181528,1719087033640,-228.05965401,0.00021817,2]
[330181529,1719087033649,-273.98010121,0.00021817,2]
[330181530,1719087033659,-377.49971515,0.00021817,2]
[330181531,1719087033668,-572.67661188,0.00021817,2]
[330181532,1719087033678,-195.60295776,0.00021817,2]
[330181533,1719087033688,-1285.40729279,0.0002182,2]
[330181534,1719087033698,-500.0,0.00021821,2]
[330181535,1719087033707,-500.0,0.0002183,2]
[330181536,1719087033717,-500.0,0.00021838,2]
[330181537,1719087033727,-155.0,0.00021846,2]
[330181538,1719087033737,-213.82246018,0.00021846,2]
[330181539,1719087033747,-500.0,0.00021847,2]
[330181540,1719087033757,-155.0,0.00021855,2]
[330181541,1719087033767,-500.0,0.00021856,2]
[330181542,1719087033777,-155.0,0.00021862,2]
[330181543,1719087033787,-172.48650395,0.00021864,2]
[330181544,1719087033796,-1272.90615694,0.00021864,2]
[330181545,1719087033806,-500.0,0.00021865,2]
[330181546,1719087033816,-517.90803403,0.00021873,2]
[330181547,1719087033826,-500.0,0.00021874,2]
[330181548,1719087033839,-1133.60989333,0.00021879,2]
[330181549,1719087033854,-1133.60989333,0.00021879,2]
[330181550,1719087033876,-155.0,0.00021882,2]
[330181551,1719087033892,-500.0,0.00021882,2]
[330181552,1719087033901,-304.86533253,0.00021885,2]
[330181553,1719087033910,-159.37216947,0.00021886,2]
[330181554,1719087033920,-283.15008754,0.00021886,2]
[330181555,1719087033929,-155.0,0.00021886,2]
[330181556,1719087033939,-771.47539738,0.00021889,2]
[330181557,1719087033949,-771.47539738,0.00021889,2]
[330181558,1719087033959,-771.47539738,0.00021889,2]
[330181559,1719087033968,-771.47539738,0.0002189,2]
[330181560,1719087033978,-771.47539738,0.0002189,2]
[330181561,1719087033987,-771.47539738,0.0002189,2]
[330181562,1719087033996,-771.47539738,0.0002189,2]
[330181563,1719087034006,-155.0,0.0002189,2]
[330181564,1719087034016,-500.0,0.00021891,2]
[330181565,1719087034025,-771.47539738,0.00021893,2]
[330181566,1719087034035,-771.47539738,0.00021895,2]
[330181567,1719087034045,-771.47539738,0.00021895,2]
[330181568,1719087034054,-771.47539738,0.00021895,2]
[330181569,1719087034064,-771.47539738,0.00021895,2]
[330181570,1719087034073,-771.47539738,0.00021895,2]
[330181571,1719087034082,-771.47539738,0.00021895,2]
[330181572,1719087034092,-771.47539738,0.00021895,2]
[330181573,1719087034102,-771.47539738,0.00021895,2]
[330181574,1719087034111,-771.47539738,0.00021895,2]
[330181575,1719087034120,-771.47539738,0.00021895,2]
[330181576,1719087034130,-771.47539738,0.00021895,2]
[330181577,1719087034140,-771.47539738,0.00021895,2]
[330181578,1719087034149,-771.47539738,0.00021895,2]
[330181579,1719087034159,-771.47539738,0.00021895,2]
[330181580,1719087034168,-771.47539738,0.00021895,2]
[330181581,1719087034177,-368.24687381,0.00021897,2]
[330181582,1719087034187,-887.22900173,0.00021899,2]
[330181583,1719087034197,-500.0,0.000219,2]
[330181584,1719087034206,-5598.85302657,0.000219,2]
[330181585,1719087034216,-292.03381711,0.00021903,2]
[330181586,1719087034226,-1492.96316394,0.00021903,2]
[330181587,1719087034235,-178858.83841632,0.00021905,2]
[330181590,1719087038454,-415.74,0.00019071,2]
[330181591,1719087038464,-214.58,0.00021335,2]
[330181592,1719087038475,-201.16,0.00021335,2]
[330181593,1719087038485,-418.57870781,0.00021815,2]
[330181594,1719087038498,-133.76144219,0.00021878,2]
[330181595,1719087038535,-21.23855781,0.00021878,2]
[330181596,1719087038544,-425.87994153,0.00021883,2]
[330181597,1719087038553,-638.77770066,0.00021895,2]
[330181598,1719087038564,-132.69769672,0.00021895,2]
[330181599,1719087038575,-771.47539738,0.00021895,2]
[330181600,1719087038585,-394.14080875,0.00021895,2]
[330181601,1719087038597,-377.33458863,0.00021895,2]
[330181602,1719087038607,-771.47539738,0.00021895,2]
[330181603,1719087038616,-771.47539738,0.00021895,2]
[330181604,1719087038627,-771.47539738,0.00021895,2]
[330181605,1719087038637,-771.47539738,0.00021895,2]
[330181606,1719087038647,-771.47539738,0.00021895,2]
[330181607,1719087038656,-771.47539738,0.00021895,2]
[330181608,1719087038666,-771.47539738,0.00021895,2]
[330181609,1719087038676,-771.47539738,0.00021895,2]
[330181610,1719087038686,-771.47539738,0.00021895,2]
[330181611,1719087038695,-771.47539738,0.00021895,2]
[330181612,1719087038704,-771.47539738,0.00021895,2]
[330181613,1719087038713,-771.47539738,0.00021895,2]
[330181614,1719087038723,-771.47539738,0.00021895,2]
[330181615,1719087038732,-771.47539738,0.00021895,2]
[330181630,1719087038915,-771.47539738,0.00021895,2]
[330181632,1719087038925,-631.88785786,0.00021895,2]
[330181634,1719087038936,-139.58753952,0.00021895,2]
[330181636,1719087038946,-771.47539738,0.00021895,2]
[330181638,1719087038955,-771.47539738,0.00021895,2]
[330181640,1719087038964,-771.47539738,0.00021895,2]
[330181642,1719087038974,-415.16937583,0.00021895,2]
[330181644,1719087038985,-314.04680689,0.00021895,2]
[330181646,1719087038997,-42.25921466,0.00021895,2]
[330181649,1719087039006,-771.47539738,0.00021895,2]
[330181652,1719087039015,-766.10723196,0.00021895,2]
[330181655,1719087039037,-5.36816542,0.00021895,2]
[330181657,1719087039047,-771.47539738,0.00021895,2]
[330181659,1719087039056,-1460.66027383,0.00021897,2]
[330181661,1719087039068,-446.9083603,0.00021897,2]
[330181662,1719087039080,-934.86337379,0.00021897,2]
[330181663,1719087039090,-11513.55096455,0.00021905,2]
[330181704,1719087040529,-155.0,0.0002189,2]
[330181705,1719087040540,-771.47539738,0.00021895,2]
[330181706,1719087040549,-771.47539738,0.00021895,2]
[330181707,1719087040559,-771.47539738,0.00021895,2]
[330181708,1719087040569,-771.47539738,0.00021895,2]
[330181709,1719087040580,-771.47539738,0.00021895,2]
[330181710,1719087040590,-771.47539738,0.00021895,2]
[330181711,1719087040600,-771.47539738,0.00021895,2]
[330181712,1719087040609,-1754.75500105,0.00021905,2]
[330181713,1719087040623,-5781.22256313,0.00021905,2]
[330181714,1719087040635,-10813.14,0.00021905,2]
[330181715,1719087040646,-7463.48389695,0.00021905,2]
[330181716,1719087040656,-332.5139031,0.00021905,2]
[330181717,1719087040665,-332.5139031,0.00021907,2]
[330181718,1719087040676,-332.5139031,0.00021907,2]
[330181719,1719087040685,-345.97900744,0.00021907,2]
[330181720,1719087040695,-202.72821444,0.00021908,2]
[330181721,1719087040704,-678.36292703,0.00021908,2]
[330181722,1719087040714,-529.49575669,0.00021909,2]
[330181723,1719087040723,-22775.3779267,0.00021909,2]
[330181724,1719087040733,-883.9885081,0.00021909,2]
[330181725,1719087040742,-10178.0489032,0.00021909,2]
[330181726,1719087040752,-30801.4758151,0.00021909,2]
[330181727,1719087040762,-1540.6110417,0.00021909,2]
[330181728,1719087040771,-7742.97233302,0.00021914,2]
[330181729,1719087040781,-854.0,0.00021915,2]
[330181730,1719087040790,-81389.09071433,0.00021915,2]
[330181731,1719087040802,-1491.09837849,0.00021915,2]
[330181732,1719087040819,-2435.38767799,0.00021915,2]
[330181733,1719087040830,-96902.00836011,0.00021915,2]
[330181734,1719087040843,-118334.92319555,0.00021915,2]
[330181735,1719087040854,-1301.90749695,0.00021915,2]
[330181736,1719087040865,-2776.36303042,0.00021915,2]
[330181737,1719087040877,-1053.98522685,0.00021915,2]
[330181738,1719087040891,-764.83570451,0.00021915,2]
[330181739,1719087040903,-781586.05917185,0.00021915,2]
[330181740,1719087040912,-200.0,0.00021915,2]
[330181742,1719087040921,-3000.0,0.00021915,2]
[330181743,1719087040931,-543.83180554,0.00021916,2]
[330181745,1719087040941,-418.87700482,0.00021916,2]
[330181747,1719087040950,-150.0,0.00021916,2]
[330181748,1719087040959,-80599.92490828,0.00021917,7]
[330181750,1719087040970,-1314.20919046,0.00021917,7]
[330181753,1719087040990,-296074.23793514,0.00021917,7]
[330181755,1719087041000,-514.17598772,0.00021917,2]
[330181756,1719087041009,-500.0,0.00021917,2]
[330181758,1719087041019,-500.0,0.00021917,2]
[330181759,1719087041028,-376.04564475,0.00021917,2]
[330181760,1719087041038,-500.0,0.00021917,2]
[330181761,1719087041048,-500.0,0.00021917,2]
[330181762,1719087041057,-500.0,0.00021917,2]
[330181763,1719087041066,-500.0,0.00021917,2]
[330181764,1719087041075,-151.0,0.00021917,2]
[330181765,1719087041085,-500.0,0.00021917,2]
[330181766,1719087041094,-500.0,0.00021917,2]
[330181767,1719087041103,-500.0,0.00021917,2]
[330181768,1719087041112,-500.0,0.00021917,2]
[330181769,1719087041122,-500.0,0.00021917,2]
[330181770,1719087041132,-497.84460652,0.00021917,2]
[330181771,1719087041142,-500.0,0.00021917,2]
[330181772,1719087041151,-500.0,0.00021917,2]
[330181773,1719087041162,-500.0,0.00021917,2]
[330181774,1719087041172,-500.0,0.00021917,2]
[330181775,1719087041182,-500.0,0.00021917,2]
[330181776,1719087041191,-500.0,0.00021917,2]
[330181777,1719087041201,-500.0,0.00021917,2]
[330181778,1719087041210,-500.0,0.00021917,2]
[330181779,1719087041233,-500.0,0.00021917,2]
[330181780,1719087041254,-500.0,0.00021917,2]
[330181781,1719087041274,-500.0,0.00021917,2]
[330181782,1719087041299,-500.0,0.00021917,2]
[330181783,1719087041320,-451.67170064,0.00021917,2]
[330181784,1719087041329,-500.0,0.00021917,2]
[330181785,1719087041338,-500.0,0.00021917,2]
[330181786,1719087041348,-500.0,0.00021917,2]
[330181787,1719087041357,-500.0,0.00021917,2]
[330181788,1719087041367,-500.0,0.00021917,2]
[330181789,1719087041377,-500.0,0.00021917,2]
[330181790,1719087041387,-500.0,0.00021917,2]
[330181791,1719087041396,-622.85014279,0.00021917,2]
[330181792,1719087041406,-500.0,0.00021917,2]
[330181793,1719087041415,-500.0,0.00021917,2]
[330181794,1719087041426,-500.0,0.00021917,2]
[330181795,1719087041436,-500.0,0.00021917,2]
[330181796,1719087041445,-514.51987873,0.00021917,2]
[330181797,1719087041455,-500.0,0.00021917,2]
[330181798,1719087041465,-500.0,0.00021917,2]
[330181799,1719087041474,-500.0,0.00021917,2]
[330181800,1719087041484,-500.0,0.00021917,2]
[330181801,1719087041496,-500.0,0.00021917,2]
[330181802,1719087041507,-500.0,0.00021917,2]
[330181803,1719087041516,-382.34867375,0.00021917,2]
[330181804,1719087041526,-1123.01,0.00021917,2]
[330181805,1719087041537,-1123.01,0.00021917,2]
[330181806,1719087041547,-1123.01,0.00021917,2]
[330181807,1719087041557,-1123.01,0.00021917,2]
[330181808,1719087041567,-500.0,0.00021917,2]
[330181809,1719087041580,-1123.01,0.00021917,2]
[330181810,1719087041590,-500.0,0.00021917,2]
[330181811,1719087041599,-1123.01,0.00021917,2]
[330181812,1719087041609,-500.0,0.00021917,2]
[330181813,1719087041619,-1123.01,0.00021917,2]
[330181814,1719087041630,-500.0,0.00021917,2]
[330181815,1719087041640,-1123.01,0.00021917,2]
[330181816,1719087041650,-1123.01,0.00021917,2]
[330181817,1719087041660,-1123.01,0.00021917,2]
[330181818,1719087041670,-500.0,0.00021917,2]
[330181819,1719087041680,-1123.01,0.00021917,2]
[330181820,1719087041690,-500.0,0.00021917,2]
[330181821,1719087041700,-962.15,0.00021917,2]
[330181822,1719087041709,-1123.01,0.00021917,2]
[330181823,1719087041719,-500.0,0.00021917,2]
[330181824,1719087041728,-1123.01,0.00021917,2]
[330181825,1719087041737,-962.15,0.00021917,2]
[330181826,1719087041746,-500.0,0.00021917,2]
[330181827,1719087041756,-1123.01,0.00021917,2]
[330181828,1719087041765,-962.15,0.00021917,2]
[330181829,1719087041774,-500.0,0.00021917,2]
[330181830,1719087041783,-962.15,0.00021917,2]
[330181831,1719087041792,-1123.01,0.00021917,2]
[330181832,1719087041802,-529.31357515,0.00021917,2]
[330181833,1719087041812,-1123.01,0.00021917,2]
[330181834,1719087041821,-962.15,0.00021917,2]
[330181835,1719087041830,-1123.01,0.00021917,2]
[330181836,1719087041840,-962.15,0.00021917,2]
[330181837,1719087041850,-1123.01,0.00021917,2]
[330181838,1719087041859,-962.15,0.00021917,2]
[330181839,1719087041868,-962.15,0.00021917,2]
[330181840,1719087041878,-1123.01,0.00021917,2]
[330181841,1719087041887,-962.15,0.00021917,2]
[330181842,1719087041897,-1123.01,0.00021917,2]
[330181843,1719087041906,-962.15,0.00021917,2]
[330181844,1719087041916,-1123.01,0.00021917,2]
[330181845,1719087041926,-962.15,0.00021917,2]
[330181846,1719087041935,-1123.01,0.00021917,2]
[330181847,1719087041945,-962.15,0.00021917,2]
[330181848,1719087041954,-1123.01,0.00021917,2]
[330181849,1719087041964,-962.15,0.00021917,2]
[330181850,1719087041973,-1123.18660799,0.00021917,2]
[330181851,1719087041983,-962.15,0.00021917,2]
[330181852,1719087041993,-962.15,0.00021917,2]
[330181853,1719087042003,-962.15,0.00021917,2]
[330181854,1719087042012,-962.15,0.00021917,2]
[330181855,1719087042021,-962.15,0.00021917,2]
[330181856,1719087042031,-962.15,0.00021917,2]
[330181857,1719087042040,-962.15,0.00021917,2]
[330181858,1719087042049,-962.15,0.00021917,2]
[330181859,1719087042059,-962.15,0.00021917,2]
[330181860,1719087042068,-500.0,0.00021917,2]
[330181861,1719087042078,-962.15,0.00021917,2]
[330181862,1719087042087,-500.0,0.00021917,2]
[330181863,1719087042096,-962.20564447,0.00021917,2]
[330181864,1719087042105,-1124.38,0.00021917,2]
[330181865,1719087042115,-1124.38,0.00021917,2]
[330181866,1719087042124,-1124.38,0.00021917,2]
[330181867,1719087042133,-1124.38,0.00021917,2]
[330181868,1719087042143,-1124.38,0.00021917,2]
[330181869,1719087042152,-1124.38,0.00021917,2]